bitfinex/quotes_SOLUSD_20250315
["timestamp","ask_amount","ask_price","bid_price","bid_amount"]
[1742013439070,29.41467967,135.6,135.59,80.2]
[1742013439571,29.41467967,135.61,135.59,80.2]
[1742013440476,29.41467967,135.61,135.58,9.46]
[1742013440477,7.3746,135.6,135.58,9.46]
[1742013440685,29.41467967,135.59,135.58,9.46]
[1742013440986,29.36582967,135.59,135.58,9.46]
[1742013441292,36.78927967,135.6,135.58,9.46]
[1742013442879,7.3746,135.6,135.58,9.46]
[1742013443389,7.3742,135.61,135.58,9.46]
[1742013443598,36.78767967,135.63,135.58,89.66]
[1742013443889,7.373,135.63,135.58,89.66]
[1742013444484,36.78767967,135.63,135.58,89.66]
[1742013444865,55.22017967,135.63,135.58,89.66]
[1742013445073,29.41467967,135.62,135.58,89.66]
[1742013445289,29.41467967,135.62,135.58,80.2]
[1742013446684,29.41467967,135.62,135.58,80.263]
[1742013446891,7.374,135.61,135.58,80.263]
[1742013447689,36.78867967,135.61,135.58,80.263]
[1742013447889,7.374,135.61,135.58,80.263]
[1742013448193,55.22387967,135.61,135.58,80.263]
[1742013448580,36.78867967,135.61,135.58,80.263]
[1742013448897,29.41467967,135.6,135.58,0.063]
[1742013449281,29.41467967,135.59,135.58,0.063]
[1742013450999,36.78977967,135.59,135.58,0.063]
[1742013451876,36.78977967,135.59,135.58,0.04018091]
[1742013453792,36.78977967,135.59,135.58,8.091e-05]
[1742013456900,47.84677967,135.64,135.58,80.20008091]
[1742013457197,7.3719,135.65,135.58,80.20008091]
[1742013457398,29.41467967,135.6,135.58,80.20008091]
[1742013457987,29.41467967,135.61,135.58,80.20008091]
[1742013458383,29.41467967,135.62,135.58,80.20008091]
[1742013459102,29.41467967,135.61,135.58,80.20008091]
[1742013461303,36.81617967,135.66,135.58,7.37528091]
[1742013461484,36.81617967,135.66,135.59,0.28432314]
[1742013461684,29.41467967,135.64,135.59,0.28432314]
[1742013462484,7.3724,135.64,135.59,0.28432314]
[1742013463085,29.41467967,135.65,135.59,0.28432314]
[1742013463086,36.78677967,135.65,135.59,7.65942314]
[1742013463501,36.78677967,135.65,135.59,0.28432314]
[1742013464206,29.41467967,135.64,135.59,0.28432314]
[1742013464508,36.78757967,135.64,135.59,0.28432314]
[1742013465305,0.03,135.66,135.59,99.633972]
[1742013465511,0.03,135.66,135.59,107.009072]
[1742013466609,0.03,135.66,135.59,99.633972]
[1742013467108,0.03,135.66,135.59,107.009072]
[1742013468614,0.03,135.66,135.59,243.109072]
[1742013468809,0.03,135.66,135.59,235.733972]
[1742013469402,0.03,135.66,135.59,243.108972]
[1742013469612,0.03,135.66,135.61,18.933972]
[1742013469790,0.03,135.66,135.64,0.28432314]
[1742013470001,0.03,135.66,135.64,80.98432314]
[1742013470916,0.03,135.66,135.64,80.7]
[1742013471618,29.33686679,135.65,135.62,80.7]
[1742013471922,29.36686679,135.66,135.62,80.7]
[1742013472219,29.33686679,135.65,135.62,80.7]
[1742013472708,7.3724,135.64,135.62,80.7]
[1742013472888,0.03,135.66,135.62,80.7]
[1742013473901,7.4014,135.66,135.62,80.7]
[1742013474093,36.73826679,135.66,135.62,80.7]
[1742013474512,0.03,135.66,135.62,80.7]
[1742013476091,0.03,135.66,135.63,0.28432314]
[1742013476286,0.03,135.66,135.63,18.933972]
[1742013476511,0.03,135.66,135.63,235.733972]
[1742013476722,0.03,135.66,135.65,0.28432314]
[1742013477018,0.03,135.66,135.65,12.40432314]
[1742013479220,0.03,135.66,135.65,12.12]
[1742013479515,0.03,135.66,135.65,12.40432314]
[1742013479710,0.03,135.66,135.65,19.77622314]
[1742013479910,0.03,135.66,135.65,119.125872]
[1742013480494,0.03,135.66,135.65,111.753972]
[1742013480896,0.03,135.66,135.65,80.98432314]
[1742013481100,0.03,135.66,135.65,93.58432314]
[1742013481307,0.03,135.66,135.65,119.605872]
[1742013481495,0.03,135.73,135.69,80.64]
[1742013481704,7.3976,135.73,135.69,80.64]
[1742013482016,36.73446679,135.73,135.69,80.64]
[1742013482392,0.03,135.73,135.69,80.64]
[1742013482898,36.73446679,135.73,135.69,80.64]
[1742013483210,29.33686679,135.71,135.69,80.64]
[1742013484502,36.70586679,135.71,135.69,80.64]
[1742013485703,29.33686679,135.7,135.69,80.64]
[1742013486722,36.70596679,135.7,135.69,80.64]
[1742013488529,36.69624796,135.7,135.69,80.64]
[1742013489227,36.69624796,135.7,135.65,229.34]
[1742013489408,29.32714796,135.69,135.65,80.64]
[1742013489600,36.69624796,135.7,135.65,80.64]
[1742013490806,29.32714796,135.69,135.65,80.64]
[1742013491113,18.3307343,135.7,135.65,80.64]
[1742013492022,20.0,135.71,135.65,80.64]
[1742013492205,18.3307343,135.69,135.65,80.64]
[1742013493017,7.3702,135.68,135.65,80.64]
[1742013493210,25.7009343,135.68,135.65,80.64]
[1742013493411,7.3702,135.68,135.65,80.64]
[1742013495032,0.03,135.73,135.65,80.64]
[1742013495221,18.3307343,135.7,135.65,80.64]
[1742013495527,18.3307343,135.69,135.65,80.703]
[1742013495906,18.3307343,135.69,135.65,88.0748]
[1742013496123,18.3607343,135.7,135.65,88.0748]
[1742013496420,18.3307343,135.68,135.65,80.703]
[1742013497113,25.7015343,135.67,135.65,80.703]
[1742013498722,18.3307343,135.66,135.65,0.063]
[1742013499108,7.3713,135.66,135.65,0.063]
[1742013499314,25.7020343,135.66,135.65,0.063]
[1742013502742,25.7020343,135.66,135.65,0.0001]
[1742013509111,7.3713,135.66,135.65,0.0001]
[1742013509518,25.7020343,135.66,135.65,0.0001]
[1742013517727,25.7009343,135.68,135.65,0.0001]
[1742013518329,18.3307343,135.67,135.65,0.0001]
[1742013519250,18.3307343,135.66,135.65,0.0001]
[1742013521349,25.7020343,135.66,135.65,0.0001]
[1742013525045,25.2020343,135.66,135.65,0.0001]
[1742013526452,25.7128935,135.66,135.65,0.0001]
[1742013527627,19.10995109,135.66,135.65,0.0001]
[1742013528333,93.04479995,135.66,135.6,80.64]
[1742013528548,11.73865109,135.61,135.58,80.64008091]
[1742013528852,11.73865109,135.6,135.58,80.64008091]
[1742013529396,11.73865109,135.61,135.58,80.64008091]
[1742013529667,11.73865109,135.65,135.59,0.28432314]
[1742013529833,11.73865109,135.64,135.59,80.92432314]
[1742013530151,11.73865109,135.64,135.59,80.64]
[1742013530365,11.73865109,135.62,135.59,80.64]
[1742013533770,19.11055109,135.65,135.59,80.64]
[1742013534262,11.73865109,135.64,135.59,80.64]
[1742013535443,19.11165109,135.63,135.59,80.64]
[1742013538670,11.73865109,135.62,135.59,80.64]
[1742013539643,7.374,135.61,135.59,80.64]
[1742013539839,11.73865109,135.6,135.58,8.091e-05]
[1742013540445,25.8092,135.61,135.58,8.091e-05]
[1742013540446,11.73865109,135.59,135.58,8.091e-05]
[1742013541659,56.20129995,135.59,135.56,8.091e-05]
[1742013541850,11.73865109,135.57,135.56,8.091e-05]
[1742013543656,19.11485109,135.57,135.56,8.091e-05]
[1742013544390,19.13327932,135.57,135.56,8.091e-05]
[1742013547578,7.374,135.61,135.56,8.091e-05]
[1742013547753,11.75707932,135.62,135.56,97.44428091]
[1742013548469,18.34870965,135.62,135.56,97.44428091]
[1742013548778,18.34870965,135.62,135.56,104.82078091]
[1742013548947,25.72240965,135.62,135.56,97.44428091]
[1742013549155,18.34870965,135.61,135.56,97.44428091]
[1742013550769,25.72440965,135.58,135.56,91.16008091]
[1742013551465,25.72440965,135.58,135.56,80.64008091]
[1742013552684,18.34870965,135.57,135.56,8.091e-05]
[1742013552977,25.72490965,135.57,135.56,8.091e-05]
[1742013553577,18.34870965,135.59,135.56,8.091e-05]
[1742013554170,18.34870965,135.58,135.56,8.091e-05]
[1742013554564,18.34870965,135.57,135.56,8.091e-05]
[1742013556493,25.72450965,135.58,135.56,8.091e-05]
[1742013556893,18.34870965,135.57,135.56,8.091e-05]
[1742013558165,25.72440965,135.58,135.56,8.091e-05]
[1742013559977,0.03,135.59,135.56,80.64008091]
[1742013561680,0.03,135.59,135.56,88.01668091]
[1742013562569,0.03,135.66,135.6,6.17162314]
[1742013562762,18.34870965,135.65,135.61,10.08]
[1742013564095,18.34870965,135.64,135.61,10.08]
[1742013564893,18.34870965,135.63,135.61,10.08]
[1742013565097,18.34870965,135.62,135.61,90.69]
[1742013565269,18.34870965,135.62,135.61,80.61]
[1742013565467,18.34870965,135.62,135.59,80.61]
[1742013565786,18.34870965,135.61,135.59,80.61]
[1742013566498,25.72270965,135.61,135.59,80.61]
[1742013566990,18.34870965,135.6,135.59,80.61]
[1742013567169,7.374,135.61,135.59,80.61]
[1742013567375,18.34870965,135.62,135.59,80.61]
[1742013567582,18.34870965,135.61,135.59,80.61]
[1742013569289,0.03,135.62,135.59,87.985]
[1742013570774,0.03,135.62,135.59,80.61]
[1742013573590,0.03,135.62,135.6,0.14216157]
[1742013574691,0.03,135.62,135.6,7.65882314]
[1742013575195,0.03,135.62,135.6,0.28432314]
[1742013576109,0.03,135.62,135.59,80.61]
[1742013577194,18.37870965,135.62,135.59,80.61]
[1742013577398,0.03,135.62,135.59,80.61]
[1742013578808,18.37466059,135.62,135.59,80.61]
[1742013579305,25.74846059,135.62,135.59,90.31]
[1742013579608,19.14760286,135.62,135.59,90.373]
[1742013579796,0.03,135.62,135.59,90.373]
[1742013580004,7.4035,135.62,135.59,90.373]
[1742013581789,0.03,135.62,135.59,90.373]
[1742013583010,11.77380286,135.62,135.59,90.373]
[1742013583308,19.14780286,135.62,135.59,90.373]
[1742013583812,7.404,135.62,135.59,90.373]
[1742013583998,19.14780286,135.62,135.59,90.373]
[1742013584910,11.77380286,135.62,135.59,90.373]
[1742013585911,19.14770286,135.62,135.59,90.373]
[1742013586698,7.4039,135.62,135.59,90.373]
[1742013587005,19.14770286,135.62,135.59,90.373]
[1742013588712,7.4039,135.62,135.59,90.373]
[1742013589011,0.03,135.62,135.59,90.373]
[1742013589194,0.03,135.62,135.6,18.933972]
[1742013590199,0.03,135.62,135.6,26.308172]
[1742013591291,0.03,135.62,135.6,106.918172]
[1742013594518,0.03,135.62,135.6,106.918572]
[1742013595725,0.03,135.62,135.6,99.543972]
[1742013596019,0.03,135.62,135.6,80.89432314]
[1742013597111,0.03,135.62,135.61,9.24]
[1742013597514,11.77380286,135.62,135.61,9.24]
[1742013598024,0.03,135.62,135.61,9.24]
[1742013600608,0.03,135.62,135.61,89.85]
[1742013602126,0.03,135.62,135.61,97.50832314]
[1742013602425,0.03,135.62,135.61,90.13432314]
[1742013603929,0.03,135.62,135.61,97.50832314]
[1742013604627,0.03,135.62,135.61,116.157972]
[1742013606233,0.03,135.62,135.61,108.783972]
[1742013607131,0.03,135.62,135.61,90.13432314]
[1742013607333,0.03,135.62,135.61,97.50832314]
[1742013607534,0.03,135.62,135.61,116.157972]
[1742013612036,0.03,135.62,135.61,90.13432314]
[1742013612334,0.03,135.62,135.61,89.85]
[1742013612714,0.03,135.62,135.61,80.61]
[1742013621437,11.77380286,135.62,135.59,0.063]
[1742013621619,11.74380286,135.61,135.59,0.063]
[1742013622432,19.11800286,135.61,135.59,0.063]
[1742013622632,0.03,135.62,135.59,0.063]
[1742013623039,19.14730286,135.62,135.59,0.063]
[1742013623641,11.74380286,135.61,135.59,0.063]
[1742013624031,19.14730286,135.62,135.59,0.063]
[1742013624232,11.74380286,135.61,135.59,0.063]
[1742013625646,0.03,135.62,135.59,0.063]
[1742013626450,0.03,135.62,135.59,0.34732314]
[1742013627048,0.03,135.62,135.59,80.95732314]
[1742013627230,0.03,135.62,135.59,88.33232314]
[1742013628855,0.03,135.62,135.61,7.65832314]
[1742013629032,0.03,135.62,135.61,0.28432314]
[1742013631341,0.03,135.62,135.61,7.65832314]
[1742013632743,0.03,135.62,135.61,88.26832314]
[1742013633938,0.03,135.62,135.61,106.917972]
[1742013636459,0.03,135.62,135.61,88.26832314]
[1742013638048,0.03,135.62,135.61,80.61]
[1742013640063,11.77380286,135.62,135.61,80.61]
[1742013640764,0.03,135.62,135.61,80.61]
[1742013641860,0.03,135.62,135.61,87.984]
[1742013642164,0.03,135.62,135.61,88.97]
[1742013644765,0.03,135.62,135.61,88.91]
[1742013645458,11.77380286,135.62,135.61,88.91]
[1742013646672,19.14730286,135.62,135.61,88.91]
[1742013647174,7.4035,135.62,135.61,88.91]
[1742013647373,19.14730286,135.62,135.61,88.91]
[1742013648169,11.77380286,135.62,135.61,88.91]
[1742013648752,0.03,135.62,135.61,88.91]
[1742013648953,11.77380286,135.62,135.61,88.91]
[1742013649976,19.14730286,135.62,135.61,88.91]
[1742013650773,19.14730286,135.62,135.59,0.063]
[1742013650953,11.74380286,135.6,135.59,0.063]
[1742013652154,19.11840286,135.6,135.59,0.063]
[1742013656669,30.86220572,135.6,135.59,0.063]
[1742013657355,19.11840286,135.6,135.59,0.063]
[1742013666972,11.74380286,135.6,135.59,0.063]
[1742013669071,19.11840286,135.6,135.59,0.063]
[1742013672989,11.74380286,135.6,135.59,0.063]
[1742013673987,19.11840286,135.6,135.59,0.063]
[1742013681003,11.74380286,135.6,135.59,0.063]
[1742013682001,19.11810286,135.61,135.59,0.063]
[1742013682306,11.74380286,135.6,135.59,0.063]
[1742013684215,19.11840286,135.6,135.59,0.063]
[1742013686306,19.14840286,135.6,135.59,0.063]
[1742013686610,11.77380286,135.6,135.59,0.063]
[1742013687315,0.03,135.6,135.59,80.673]
[1742013691207,0.03,135.6,135.59,88.33242314]
[1742013692816,0.03,135.6,135.59,88.19026157]
[1742013693320,0.03,135.6,135.59,80.81516157]
[1742013696814,0.03,135.6,135.59,80.673]
[1742013702222,11.77380286,135.6,135.59,80.673]
[1742013703519,11.77380286,135.6,135.56,8.091e-05]
[1742013703520,23.51760572,135.6,135.56,8.091e-05]
[1742013703698,11.74380286,135.57,135.56,8.091e-05]
[1742013704099,19.12000286,135.57,135.56,8.091e-05]
[1742013704720,19.12000286,135.57,135.53,80.61]
[1742013704721,11.4423,135.56,135.53,80.61]
[1742013704917,11.74380286,135.54,135.51,0.063]
[1742013705106,11.74380286,135.52,135.51,0.063]
[1742013715132,6.1642,135.55,135.51,0.063]
[1742013715319,13.5417,135.55,135.51,0.063]
[1742013715524,11.74380286,135.52,135.51,0.063]
[1742013716114,11.74380286,135.53,135.51,0.063]
[1742013717137,11.74380286,135.52,135.51,0.063]
[1742013721421,19.12270286,135.52,135.51,0.063]
[1742013726126,11.74380286,135.52,135.51,0.063]
[1742013727738,11.74380286,135.53,135.51,0.063]
[1742013729847,19.12220286,135.53,135.51,0.063]
[1742013730445,11.74380286,135.53,135.51,0.063]
[1742013730835,19.12250286,135.53,135.51,0.063]
[1742013731149,11.74380286,135.52,135.51,0.063]
[1742013732941,19.12270286,135.52,135.51,0.063]
[1742013733741,7.3778,135.54,135.51,0.063]
[1742013734046,11.74380286,135.52,135.51,0.063]
[1742013735724,11.77380286,135.55,135.51,7.343]
[1742013736041,19.15110286,135.55,135.51,7.343]
[1742013736346,11.74380286,135.53,135.51,7.343]
[1742013736930,11.74380286,135.52,135.51,7.343]
[1742013737654,19.12270286,135.52,135.51,7.343]
[1742013738456,7.3789,135.52,135.51,7.343]
[1742013738751,7.3778,135.54,135.51,7.343]
[1742013738953,11.74380286,135.53,135.51,7.343]
[1742013739831,11.74380286,135.52,135.51,7.343]
[1742013740940,11.74380286,135.53,135.51,7.343]
[1742013741754,11.74380286,135.53,135.51,14.7225]
[1742013742352,11.74380286,135.53,135.51,7.343]
[1742013743049,11.74380286,135.52,135.51,7.343]
[1742013744349,19.12270286,135.52,135.51,7.343]
[1742013745047,19.12270286,135.52,135.51,0.063]
[1742013748557,11.74380286,135.52,135.51,0.063]
[1742013750539,19.12270286,135.52,135.51,0.063]
[1742013752158,11.74380286,135.52,135.51,0.063]
[1742013754046,11.74380286,135.53,135.51,0.063]
[1742013756567,11.74380286,135.52,135.51,0.063]
[1742013758969,19.12270286,135.52,135.51,0.063]
[1742013760073,11.74380286,135.52,135.51,0.063]
[1742013761173,19.12270286,135.52,135.51,0.063]
[1742013762571,11.74380286,135.52,135.51,0.063]
[1742013763876,19.12270286,135.52,135.51,0.063]
[1742013764172,11.74380286,135.52,135.51,0.063]
[1742013766996,11.74380286,135.54,135.51,0.063]
[1742013768975,11.74380286,135.54,135.51,80.95732314]
[1742013769987,0.03,135.55,135.51,80.95732314]
[1742013770284,11.74380286,135.54,135.51,80.95732314]
[1742013770589,11.74380286,135.54,135.51,88.33642314]
[1742013775289,11.74380286,135.54,135.51,80.95732314]
[1742013779904,11.74380286,135.54,135.51,88.33662314]
[1742013784637,11.77380286,135.55,135.51,88.33662314]
[1742013784806,0.03,135.55,135.53,0.28432314]
[1742013784982,0.03,135.55,135.54,6.96]
[1742013785184,11.77380286,135.55,135.54,87.57]
[1742013786183,19.15110286,135.55,135.54,87.57]
[1742013789095,11.77380286,135.55,135.54,87.57]
[1742013793680,0.03,135.55,135.54,87.57]
[1742013793880,11.77380286,135.55,135.54,87.57]
[1742013795398,11.77380286,135.55,135.54,94.9478]
[1742013795803,0.03,135.55,135.54,94.9478]
[1742013796203,11.77380286,135.55,135.54,87.57]
[1742013796805,11.77380286,135.55,135.54,94.9478]
[1742013797102,11.77380286,135.55,135.54,87.57]
[1742013797598,0.03,135.55,135.54,94.9478]
[1742013799311,0.03,135.55,135.54,95.08996157]
[1742013799793,0.03,135.55,135.54,113.881772]
[1742013801101,11.74380286,135.59,135.56,0.14216157]
[1742013801288,0.03,135.6,135.56,80.72216157]
[1742013801908,11.77380286,135.6,135.57,7.3762]
[1742013802289,11.77380286,135.6,135.58,18.933972]
[1742013802290,0.03,135.6,135.58,18.933972]
[1742013802496,0.03,135.6,135.59,25.833972]
[1742013802687,0.03,135.6,135.59,161.933972]
[1742013803688,0.03,135.6,135.59,169.309072]
[1742013804710,0.03,135.6,135.59,161.933972]
[1742013804889,0.03,135.6,135.59,143.14216157]
[1742013806893,0.03,135.6,135.59,143.0]
[1742013807126,11.77380286,135.6,135.59,143.0]
[1742013808507,19.14840286,135.6,135.59,143.0]
[1742013808812,19.14840286,135.6,135.59,80.58]
[1742013810295,0.03,135.6,135.59,80.58]
[1742013811189,11.77380286,135.6,135.59,80.58]
[1742013814414,0.03,135.6,135.59,87.9551]
[1742013815897,0.03,135.6,135.59,88.09726157]
[1742013821409,0.03,135.6,135.59,80.72216157]
[1742013821830,0.03,135.6,135.59,80.58]
[1742013822619,11.77380286,135.6,135.59,80.58]
[1742013823814,19.14840286,135.6,135.59,80.58]
[1742013824910,19.14840286,135.6,135.56,80.58]
[1742013825115,11.74380286,135.57,135.56,80.58]
[1742013825806,11.74380286,135.57,135.55,0.063]
[1742013826008,11.74380286,135.56,135.55,0.063]
[1742013827129,19.12060286,135.56,135.55,0.063]
[1742013827430,11.74380286,135.56,135.55,0.063]
[1742013827804,11.74380286,135.57,135.55,0.063]
[1742013828932,11.74380286,135.56,135.55,0.063]
[1742013829118,11.74380286,135.57,135.55,0.063]
[1742013829530,11.74380286,135.56,135.55,0.063]
[1742013830429,11.77380286,135.56,135.55,0.063]
[1742013832029,19.15060286,135.56,135.55,0.063]
[1742013834333,11.77380286,135.56,135.55,0.063]
[1742013836117,0.03,135.56,135.55,0.063]
[1742013838041,0.03,135.56,135.55,80.643]
[1742013838222,11.77380286,135.56,135.55,80.643]
[1742013840540,0.03,135.56,135.55,80.643]
[1742013842137,0.03,135.56,135.55,88.0203]
[1742013842339,0.03,135.56,135.55,88.16246157]
[1742013843236,0.03,135.56,135.55,112.735772]
[1742013846948,11.77380286,135.6,135.57,80.55]
[1742013848048,19.14840286,135.6,135.57,80.55]
[1742013849733,11.74380286,135.58,135.57,80.55]
[1742013851636,19.11950286,135.58,135.57,80.55]
[1742013862264,11.74380286,135.58,135.57,80.55]
[1742013863059,19.11950286,135.58,135.57,80.55]
[1742013866169,11.74380286,135.58,135.57,80.55]
[1742013869972,19.11950286,135.58,135.57,80.55]
[1742013873270,0.03,135.6,135.59,61.54265871]
[1742013875457,0.03,135.6,135.59,68.91775871]
[1742013879776,0.03,135.6,135.59,61.40049714]
[1742013879982,11.77380286,135.6,135.59,61.40049714]
[1742013880561,0.03,135.6,135.59,61.40049714]
[1742013884071,0.03,135.6,135.59,68.77559714]
[1742013885161,0.03,135.6,135.59,68.91775871]
[1742013888383,0.03,135.6,135.59,61.54265871]
[1742013890365,0.03,135.6,135.59,61.40049714]
[1742013891282,0.03,135.6,135.59,68.30049714]
[1742013894967,0.03,135.62,135.61,0.28432314]
[1742013895287,0.03,135.62,135.61,69.02882028]
[1742013896985,0.03,135.62,135.61,87.67846914]
[1742013897378,0.03,135.62,135.61,223.77846914]
[1742013898584,0.03,135.62,135.61,205.12882028]
[1742013901394,0.03,135.62,135.61,61.37049714]
[1742013903492,11.77380286,135.62,135.61,61.37049714]
[1742013904291,19.14730286,135.62,135.61,61.37049714]
[1742013904590,11.77380286,135.62,135.61,61.37049714]
[1742013906299,0.03,135.62,135.61,61.37049714]
[1742013906901,19.14730286,135.62,135.61,61.37049714]
[1742013907108,19.14730286,135.62,135.58,68.33349714]
[1742013908295,19.14730286,135.62,135.58,75.70909714]
[1742013908478,0.03,135.62,135.58,75.70909714]
[1742013909180,0.03,135.62,135.59,0.28432314]
[1742013909383,0.03,135.62,135.59,18.933972]
[1742013910389,0.03,135.62,135.6,7.3746]
[1742013911398,0.03,135.62,135.6,68.74509714]
[1742013913408,0.03,135.62,135.6,61.37049714]
[1742013914987,11.77380286,135.62,135.6,61.37049714]
[1742013915184,0.03,135.62,135.6,61.37049714]
[1742013922691,11.77380286,135.62,135.6,61.37049714]
[1742013923619,0.03,135.62,135.6,61.37049714]
[1742013925315,0.03,135.62,135.6,61.43349714]
[1742013926915,11.77380286,135.62,135.6,61.43349714]
[1742013927118,23.50860286,135.61,135.6,0.063]
[1742013927300,20.0,135.59,135.58,0.063]
[1742013927498,11.74380286,135.59,135.58,0.063]
[1742013927699,11.74380286,135.6,135.58,0.063]
[1742013927906,23.50860286,135.61,135.58,61.43349714]
[1742013928112,19.14760286,135.62,135.58,68.31349714]
[1742013928623,11.77380286,135.62,135.58,68.31349714]
[1742013929319,19.14730286,135.62,135.58,68.31349714]
[1742013930116,11.74380286,135.61,135.58,68.31349714]
[1742013930314,11.74380286,135.6,135.58,68.31349714]
[1742013931615,19.11880286,135.6,135.58,68.31349714]
[1742013932726,11.74380286,135.59,135.58,68.31349714]
[1742013933820,19.11890286,135.59,135.58,68.31349714]
[1742013937728,19.11890286,135.59,135.58,6.943]
[1742013940934,7.3751,135.59,135.58,6.943]
[1742013941134,0.03,135.6,135.58,6.943]
[1742013941607,11.77380286,135.6,135.58,6.943]
[1742013942734,19.14850286,135.6,135.58,6.943]
[1742013943231,11.77380286,135.6,135.58,6.943]
[1742013943452,0.03,135.6,135.58,75.68909714]
[1742013945228,0.03,135.6,135.58,68.31349714]
[1742013945229,11.77380286,135.6,135.58,68.31349714]
[1742013945547,11.74380286,135.59,135.58,68.31349714]
[1742013946540,11.74380286,135.59,135.58,0.063]
[1742013947332,19.11890286,135.59,135.58,0.063]
[1742013950342,19.14840286,135.6,135.58,0.063]
[1742013950517,11.77380286,135.6,135.58,0.063]
[1742013950718,19.14850286,135.6,135.58,0.063]
[1742013951033,11.77380286,135.6,135.58,0.063]
[1742013951543,19.14850286,135.6,135.58,0.063]
[1742013951843,11.74380286,135.59,135.58,0.063]
[1742013954824,19.14870286,135.6,135.58,0.063]
[1742013955245,11.77380286,135.6,135.58,0.063]
[1742013955458,11.77380286,135.6,135.58,61.43349714]
[1742013956718,11.74380286,135.59,135.58,61.43349714]
[1742013957225,0.03,135.6,135.59,7.3751]
[1742013957432,0.03,135.6,135.59,6.88]
[1742013957820,11.77380286,135.6,135.59,6.88]
[1742013958020,0.03,135.6,135.59,6.88]
[1742013958632,11.77380286,135.6,135.59,6.88]
[1742013959333,19.14840286,135.6,135.59,6.88]
[1742013959540,19.14840286,135.6,135.58,61.43349714]
[1742013959749,11.74380286,135.59,135.58,61.43349714]
[1742013961329,11.74380286,135.59,135.58,0.063]
[1742013961641,19.11890286,135.59,135.58,0.063]
[1742013963846,11.74380286,135.59,135.58,0.063]
[1742013964629,11.77380286,135.6,135.58,0.063]
[1742013964929,19.14840286,135.6,135.58,0.063]
[1742013965644,11.77380286,135.6,135.58,0.063]
[1742013966142,19.14850286,135.6,135.58,0.063]
[1742013967331,11.74380286,135.59,135.58,0.063]
[1742013968747,19.11890286,135.59,135.58,0.063]
[1742013969145,7.3751,135.59,135.58,0.063]
[1742013969442,19.11890286,135.59,135.58,0.063]
[1742013971348,11.77380286,135.6,135.58,0.063]
[1742013972041,19.14850286,135.6,135.58,0.063]
[1742013975045,0.03,135.6,135.58,0.063]
[1742013976447,11.77380286,135.6,135.59,6.88]
[1742013976838,0.03,135.6,135.59,6.88]
[1742013978968,0.03,135.6,135.59,75.62559714]
[1742013981253,0.03,135.6,135.59,68.25049714]
[1742013986272,11.77380286,135.6,135.59,68.25049714]
[1742013986974,11.77380286,135.6,135.59,61.37049714]
[1742013987175,19.14840286,135.6,135.59,61.37049714]
[1742013987465,11.77380286,135.6,135.59,61.37049714]
[1742013987762,19.14840286,135.6,135.59,61.37049714]
[1742013989466,36.98420286,135.6,135.58,0.063]
[1742013989675,11.74380286,135.59,135.58,0.063]
[1742013990670,19.11890286,135.59,135.58,0.063]
[1742013990853,37.76855172,135.59,135.58,0.063]
[1742014000452,37.91071329,135.59,135.58,0.063]
[1742014000657,37.91071329,135.59,135.58,0.0001]
[1742014001059,38.64964886,135.57,135.56,0.063]
[1742014001260,50.39345172,135.57,135.56,0.063]
[1742014003580,57.76965172,135.57,135.56,0.063]
[1742014005580,57.26965172,135.57,135.56,0.063]
[1742014006870,11.74380286,135.57,135.56,0.063]
[1742014008282,19.12000286,135.57,135.56,0.063]
[1742014008784,11.74380286,135.57,135.56,0.063]
[1742014009813,19.12000286,135.57,135.56,0.063]
[1742014010364,11.74380286,135.57,135.56,0.063]